bitfinex-derivatives/quotes_ETHF0:USTF0_20250331
["timestamp","ask_amount","ask_price","bid_price","bid_amount"]
[1743449427477,3.2078,1836.5,1836.4,1.08917]
[1743449427672,4.29691,1836.5,1836.4,1.08917]
[1743449427873,4.29691,1836.5,1836.4,1.81017]
[1743449428479,1.08911,1836.5,1836.4,1.81017]
[1743449428881,2.55251,1836.6,1836.5,1.08911]
[1743449429068,2.55251,1836.6,1836.5,3.731]
[1743449430381,2.55251,1836.6,1836.5,4.82011]
[1743449430581,1.08911,1836.6,1836.5,4.82011]
[1743449430885,2.5137706,1836.7,1836.6,1.08905]
[1743449431075,2.5137706,1836.7,1836.6,1.77305]
[1743449431273,2.5137706,1836.7,1836.6,0.684]
[1743449432180,2.5137706,1836.7,1836.6,1.77305]
[1743449433776,0.0081606,1836.7,1836.6,1.77305]
[1743449434991,1.08905,1836.6,1836.5,3.2078]
[1743449435178,2.50025,1836.6,1836.5,3.719]
[1743449435574,3.90415,1836.6,1836.5,3.719]
[1743449435779,7.11195,1836.6,1836.5,3.72]
[1743449436379,3.90415,1836.6,1836.5,3.72]
[1743449437582,3.90415,1836.6,1836.5,4.80911]
[1743449437882,3.90415,1836.6,1836.5,3.72]
[1743449438084,5.44406,1837.1,1836.5,3.72]
[1743449438085,1.47673116,1837.6,1836.5,9.4278]
[1743449438289,1.08875,1837.2,1837.1,1.08873]
[1743449438582,1.0887,1837.2,1837.1,3.76]
[1743449438783,1.0887,1837.2,1837.1,4.84875]
[1743449438984,1.0887,1837.2,1837.1,3.76]
[1743449439180,1.0887,1837.2,1837.1,6.33605]
[1743449439886,1.0887,1837.2,1837.1,7.04115]
[1743449440185,1.0887,1837.2,1837.1,5.9524]
[1743449440380,1.0887,1837.2,1837.1,3.76]
[1743449441183,0.0081606,1837.3,1837.2,1.0887]
[1743449441379,1.0968006,1837.3,1837.2,3.2078]
[1743449441586,1.0887,1837.2,1837.1,6.25701]
[1743449441887,2.5792,1837.2,1837.1,9.46485]
[1743449442085,3.3259,1837.2,1837.1,9.46485]
[1743449443082,2.2372,1837.2,1837.1,9.46485]
[1743449443486,3.3259,1837.2,1837.1,6.9678]
[1743449443688,1.08875,1837.1,1837.0,0.0081606]
[1743449443893,3.26755,1837.1,1837.0,3.7651606]
[1743449445386,5.76755,1837.1,1837.0,3.754]
[1743449445891,5.76755,1837.1,1837.0,2.6455594]
[1743449447287,1.08881,1837.0,1836.9,6e-07]
[1743449447482,1.08917,1836.4,1836.3,1.4516]
[1743449447692,1.08917,1836.4,1836.3,5.2026]
[1743449448395,1.08917,1836.4,1836.3,6.29183]
[1743449448583,1.08917,1836.4,1836.3,5.2026]
[1743449448784,2.45697,1836.4,1836.3,6.29183]
[1743449449291,1.08916,1836.5,1836.4,1.08913]
[1743449449489,2.45696,1836.5,1836.4,2.1672]
[1743449451683,2.45696,1836.5,1836.4,3.25637]
[1743449451889,2.72234,1836.8,1836.4,5.375]
[1743449452091,1.08905,1836.6,1836.5,1.4216]
[1743449452292,1.08911,1836.5,1836.4,3.2078]
[1743449452493,1.77661,1836.5,1836.4,3.742]
[1743449454195,1.08923,1836.3,1836.2,54.9281606]
[1743449454400,1.08923,1836.3,1836.2,3.7471606]
[1743449454697,4.29703,1836.3,1836.2,3.7471606]
[1743449454900,5.00553,1836.3,1836.2,3.7471606]
[1743449456090,5.00553,1836.3,1836.2,3.7431606]
[1743449456291,5.00553,1836.3,1836.2,2.6148606]
[1743449456490,1.08947,1835.9,1835.8,3.2078]
[1743449456692,1.08947,1835.9,1835.8,8.3969]
[1743449456997,1.08947,1835.9,1835.8,5.1891]
[1743449457295,1.08947,1835.9,1835.8,8.3969]
[1743449457599,1.08958,1835.7,1835.6,54.9]
[1743449457794,1.08958,1835.7,1835.6,56.3551]
[1743449457998,1.08958,1835.7,1835.6,60.0871]
[1743449462097,1.08958,1835.7,1835.6,61.17674]
[1743449462298,3.4825006,1836.0,1835.6,60.0871]
[1743449462502,1.08956,1835.8,1835.7,5.72477]
[1743449462700,1.08953,1835.9,1835.8,1.08953]
[1743449462998,1.08953,1835.9,1835.8,2.1249]
[1743449463396,1.08953,1835.9,1835.8,3.21443]
[1743449463803,1.08953,1835.9,1835.8,2.1249]
[1743449464200,1.08953,1835.9,1835.8,3.21443]
[1743449464399,1.08953,1835.9,1835.8,2.1249]
[1743449466005,1.4726606,1836.0,1835.9,1.08947]
[1743449466006,1.0976206,1836.0,1835.9,1.08947]
[1743449466309,3.2159606,1836.0,1835.6,54.9]
[1743449466609,1.08953,1835.8,1835.7,3.724]
[1743449466807,1.08953,1835.8,1835.7,5.1729]
[1743449470406,3.40278,1835.9,1835.6,55.6283]
[1743449470407,1.08958,1835.7,1835.6,55.6283]
[1743449470614,1.08982,1835.3,1835.2,4.6567]
[1743449470799,1.08982,1835.3,1835.2,8.3817]
[1743449471609,1.08982,1835.3,1835.2,5.1739]
[1743449472507,1.08982,1835.3,1835.2,8.3817]
[1743449475614,1.08994,1835.1,1835.0,54.922]
[1743449475816,1.08994,1835.1,1835.0,58.636]
[1743449476316,1.08994,1835.1,1835.0,60.0164]
[1743449478819,2.54784,1835.1,1835.0,60.0164]
[1743449482119,1.4579,1835.1,1835.0,60.0164]
[1743449482318,1.08993,1835.2,1835.0,60.0164]
[1743449482524,1.08994,1835.1,1835.0,59.72596]
[1743449482818,1.08993,1835.2,1835.1,1.08991]
[1743449483020,1.08993,1835.2,1835.1,4.29771]
[1743449484020,1.08993,1835.2,1835.1,3.2078]
[1743449484427,1.08993,1835.2,1835.1,4.29774]
[1743449484820,1.08993,1835.2,1835.1,1.08994]
[1743449485028,1.08993,1835.2,1835.1,4.29774]
[1743449485224,3.44574,1835.6,1835.2,1.08984]
[1743449485427,1.08967,1835.6,1835.3,7.5926]
[1743449485614,1.4609,1835.8,1835.4,6.42329]
[1743449485818,1.08964,1835.6,1835.5,4.29745]
[1743449488231,1.3996,1835.7,1835.5,4.29745]
[1743449488232,2.48923,1835.7,1835.6,1.08964]
[1743449488431,1.08964,1835.6,1835.5,4.29747]
[1743449489830,1.08964,1835.6,1835.5,3.2078]
[1743449490630,1.08964,1835.6,1835.5,4.2975]
[1743449490828,2.48919,1835.7,1835.6,1.08964]
[1743449492531,1.08964,1835.6,1835.5,4.29746]
[1743449493535,2.48923,1835.7,1835.6,1.08964]
[1743449494037,2.48918,1835.7,1835.6,1.08964]
[1743449494237,1.08964,1835.6,1835.5,4.29744]
[1743449494738,1.08964,1835.6,1835.5,3.2078]
[1743449495038,1.08964,1835.6,1835.5,3.679]
[1743449495340,1.08976,1835.4,1835.3,0.6878]
[1743449495639,1.08976,1835.4,1835.3,5.45562]
[1743449496226,2.47246,1835.4,1835.3,5.45562]
[1743449496936,1.08968,1835.6,1835.5,1.0897]
[1743449497638,1.08968,1835.6,1835.5,4.2975]
[1743449497827,1.08968,1835.6,1835.5,1.0897]
[1743449498035,1.08968,1835.6,1835.5,4.2975]
[1743449498937,1.08968,1835.6,1835.5,5.7824]
[1743449499139,1.08968,1835.6,1835.5,4.6927]
[1743449499332,1.83168,1835.6,1835.5,4.6927]
[1743449499536,1.83168,1835.6,1835.5,3.2078]
[1743449499729,1.83168,1835.6,1835.5,6.8848]
[1743449500239,1.0896,1835.7,1835.6,1.08964]
[1743449500441,4.15198,1835.9,1835.6,2.57452]
[1743449500636,4.15198,1835.9,1835.7,2.2242]
[1743449500637,2.51783,1835.8,1835.7,2.2242]
[1743449501041,2.51783,1835.8,1835.7,2.9559]
[1743449502241,2.51783,1835.8,1835.7,2.2242]
[1743449502943,2.51783,1835.8,1835.7,3.696]
[1743449503242,2.51783,1835.8,1835.4,3.2078]
[1743449503243,1.0897,1835.5,1835.4,3.9249]
[1743449503445,1.0897,1835.5,1835.4,4.4171]
[1743449503641,1.0897,1835.5,1835.4,5.8045]
[1743449504140,2.5635,1835.5,1835.4,5.8045]
[1743449504845,2.5635,1835.5,1835.4,9.0123]
[1743449505136,2.5635,1835.5,1835.4,10.10206]
[1743449505343,2.5635,1835.5,1835.4,9.0123]
[1743449506343,2.5635,1835.5,1835.4,10.10206]
[1743449506946,2.5635,1835.5,1835.4,9.0123]
[1743449509132,2.5635,1835.5,1835.4,10.10206]
[1743449509337,2.5635,1835.5,1835.4,8.9963]
[1743449509544,2.5635,1835.5,1835.4,10.08606]
[1743449509740,1.08969,1835.6,1835.5,1.08967]
[1743449509941,2.51429,1835.6,1835.5,2.49347]
[1743449510248,2.51429,1835.6,1835.5,1.4038]
[1743449510543,2.51429,1835.6,1835.5,2.4935]
[1743449511442,2.51429,1835.6,1835.5,1.4038]
[1743449512548,2.51429,1835.6,1835.5,2.4935]
[1743449513054,2.51429,1835.6,1835.5,1.4038]
[1743449513651,2.51429,1835.6,1835.5,2.4935]
[1743449513841,2.51429,1835.6,1835.5,1.4038]
[1743449514040,2.51429,1835.6,1835.5,2.4935]
[1743449514242,2.51424,1835.6,1835.5,2.4935]
[1743449514841,2.51424,1835.6,1835.5,1.4038]
[1743449515041,2.51424,1835.6,1835.5,2.4935]
[1743449516251,2.51424,1835.6,1835.5,1.4038]
[1743449516445,2.51424,1835.6,1835.5,2.4935]
[1743449516842,1.08964,1835.6,1835.5,2.4935]
[1743449517544,0.7401,1835.9,1835.5,1.4038]
[1743449517751,0.0081606,1836.0,1835.8,3.2078]
[1743449517950,1.0975706,1836.0,1835.9,6.4599]
[1743449518147,2.4732706,1836.0,1835.9,6.4599]
[1743449519950,2.4732706,1836.0,1835.9,7.54937]
[1743449520559,1.0975706,1836.0,1835.9,7.54937]
[1743449522354,2.72282,1836.5,1836.2,1.08924]
[1743449522550,1.4898,1836.4,1836.3,4.76623]
[1743449522857,2.57897,1836.4,1836.3,4.76623]
[1743449523052,2.57897,1836.4,1836.3,3.677]
[1743449523849,3.29617,1836.4,1836.3,3.677]
[1743449525854,1.08923,1836.3,1836.2,0.0081606]
[1743449526045,5.72073,1836.3,1836.2,0.0081606]
[1743449526243,5.72073,1836.3,1836.2,3.675]
[1743449526451,6.47253,1836.3,1836.2,3.675]
[1743449526847,1.08953,1835.8,1835.7,3.946]
[1743449527048,1.08953,1835.8,1835.7,7.619]
[1743449527757,2.54443,1835.8,1835.7,7.619]
[1743449529160,2.54443,1835.8,1835.7,6.8818]
[1743449531659,2.54443,1835.8,1835.7,3.674]
[1743449534562,2.54443,1835.8,1835.7,5.47948]
[1743449534764,2.54443,1835.8,1835.7,4.3899]
[1743449536355,2.54443,1835.8,1835.7,7.5977]
[1743449536555,2.72327,1836.2,1835.9,1.08942]
[1743449536755,1.08935,1836.1,1836.0,5.1123]
[1743449538567,1.08935,1836.1,1836.0,6.20171]
[1743449538771,1.08935,1836.1,1836.0,7.58921]
[1743449539377,1.08935,1836.1,1836.0,6.4998]
[1743449540472,1.08935,1836.1,1836.0,7.58921]
[1743449540672,1.4063,1836.2,1836.1,1.08935]
[1743449540964,1.3822,1836.4,1836.1,4.5953]
[1743449541169,1.08929,1836.2,1836.1,5.6846]
[1743449541360,1.08929,1836.2,1836.1,4.2971]
[1743449541866,0.0081606,1836.5,1836.4,1.08917]
[1743449542058,0.0081606,1836.5,1836.4,4.75217]
[1743449542059,2.5554706,1836.5,1836.4,4.75217]
[1743449542369,1.4663606,1836.5,1836.4,5.043]
[1743449542569,2.5554706,1836.5,1836.4,5.043]
[1743449543165,2.5554706,1836.5,1836.4,4.3552]
[1743449545166,1.4663606,1836.5,1836.1,0.6998]
[1743449545376,1.08929,1836.2,1836.1,2.52784]
[1743449545571,1.08935,1836.1,1836.0,4.29719]
[1743449545870,2.45025,1836.1,1836.0,3.2078]
[1743449546070,2.45025,1836.1,1836.0,7.96521]
[1743449546271,2.45025,1836.1,1836.0,6.8758]
[1743449549467,1.08935,1836.2,1836.1,1.08931]
[1743449549667,1.08935,1836.2,1836.1,2.53531]
[1743449550775,1.08935,1836.2,1836.1,1.446]
[1743449551077,1.08935,1836.2,1836.1,2.53535]
[1743449552381,1.08924,1836.4,1836.3,1.0892]
[1743449552576,1.08928,1836.3,1836.2,4.29704]
[1743449552776,1.08928,1836.3,1836.2,6.8678]
[1743449552976,1.08928,1836.3,1836.2,3.66]
[1743449553274,1.08928,1836.3,1836.2,4.74929]
[1743449553881,1.08928,1836.3,1836.2,7.95709]
[1743449556081,0.0081606,1836.5,1836.3,1.08923]
[1743449556278,1.0972706,1836.5,1836.4,4.99307]
[1743449556579,1.0972706,1836.5,1836.4,3.9039]
[1743449556784,2.5426706,1836.5,1836.4,3.9039]
[1743449557383,2.5426706,1836.5,1836.4,4.99307]
[1743449557785,2.5426706,1836.5,1836.4,3.9039]
[1743449558482,2.5426706,1836.5,1836.4,0.6961]
[1743449559293,1.08923,1836.3,1836.2,6.8678]
[1743449559581,1.08923,1836.3,1836.2,7.95709]
[1743449559783,1.08923,1836.3,1836.2,9.44519]
[1743449560777,1.08923,1836.3,1836.2,3.2078]
[1743449561078,1.08923,1836.3,1836.0,3.9428]
[1743449561079,1.08935,1836.1,1836.0,3.9428]
[1743449561283,1.08935,1836.1,1836.0,9.0839]
[1743449561889,1.08935,1836.1,1836.0,10.17331]
[1743449562390,1.08935,1836.1,1836.0,10.1733]
[1743449563385,2.57163,1836.2,1836.1,1.08935]
[1743449563586,2.57163,1836.2,1836.1,2.54585]
[1743449563587,1.08933,1836.2,1836.1,2.54585]
[1743449563885,2.44913,1836.3,1836.2,1.08929]
[1743449564084,2.44913,1836.3,1836.2,3.2078]
[1743449564289,2.44913,1836.3,1836.2,4.29709]
[1743449564492,2.44913,1836.3,1836.2,4.6643]
[1743449564786,2.44913,1836.3,1836.2,5.75359]
[1743449565001,2.44913,1836.3,1836.2,4.6643]
[1743449565188,2.44913,1836.3,1836.2,5.75359]
[1743449565782,1.08921,1836.4,1836.3,1.08923]
[1743449565983,2.5706806,1836.5,1836.4,1.08917]
[1743449566178,1.4815606,1836.5,1836.4,2.58167]
[1743449566395,2.5706706,1836.5,1836.4,2.58167]
[1743449566783,2.5706706,1836.5,1836.4,1.4925]
[1743449567291,2.5706706,1836.5,1836.4,57.49367]
[1743449567492,2.5706706,1836.5,1836.4,60.70147]
[1743449567985,1.4815606,1836.5,1836.4,60.70147]
[1743449568181,2.5706706,1836.5,1836.4,60.70147]
[1743449568382,1.0972706,1836.5,1836.4,60.70147]
[1743449568587,0.0081606,1836.5,1836.4,60.70147]
[1743449571988,1.0972706,1836.5,1836.4,60.70147]
[1743449572191,1.0972706,1836.5,1836.4,63.2573]
[1743449572492,1.0972706,1836.5,1836.4,64.34647]
[1743449573091,2.5078706,1836.5,1836.4,64.34647]
[1743449573286,1.4187606,1836.5,1836.4,64.34647]
[1743449574088,0.0081606,1836.5,1836.4,64.34647]
[1743449575692,1.0972706,1836.5,1836.4,64.34647]
[1743449576594,0.0081606,1836.5,1836.4,64.34647]
[1743449580998,1.3866606,1836.5,1836.4,64.34647]
[1743449581902,0.0081606,1836.5,1836.4,64.34647]
[1743449584712,1.0972706,1836.5,1836.4,59.20897]
[1743449585006,2.5569706,1836.5,1836.4,62.83897]
[1743449585409,2.5569706,1836.5,1836.4,64.27507]
[1743449588118,1.4678606,1836.5,1836.4,64.27507]
[1743449588316,0.0081606,1836.5,1836.4,64.27507]
[1743449588910,1.4495606,1836.5,1836.4,64.27507]
[1743449590014,0.0081606,1836.5,1836.4,64.27507]
[1743449590618,1.0972706,1836.5,1836.4,64.27507]
[1743449590808,2.5145706,1836.5,1836.4,64.27507]
[1743449591009,2.5145706,1836.5,1836.4,62.82997]
[1743449591511,3.2571706,1836.5,1836.4,58.1198]
[1743449591717,3.2571706,1836.5,1836.4,54.912]
[1743449591909,3.2571706,1836.5,1836.4,58.535]
[1743449592709,2.1680606,1836.5,1836.4,59.62417]
[1743449592910,2.5145706,1836.5,1836.4,62.83197]
[1743449593421,1.4254606,1836.5,1836.4,64.95147]
[1743449593720,0.0081606,1836.5,1836.4,64.95147]
[1743449594513,1.08904,1836.7,1836.6,1.08899]
[1743449594716,1.08904,1836.7,1836.6,5.69749]
[1743449594916,2.46578,1836.8,1836.7,1.08899]
[1743449595117,2.46578,1836.8,1836.7,6.11369]
[1743449596110,2.46578,1836.8,1836.7,5.0247]
[1743449596415,2.46578,1836.8,1836.7,6.11369]
[1743449597824,2.46578,1836.8,1836.7,4.71299]
[1743449598123,1.08899,1836.7,1836.6,0.0081606]
[1743449598324,3.18539,1836.7,1836.6,7.9260106]
[1743449599319,3.18539,1836.7,1836.6,6.8369606]
[1743449599616,3.18539,1836.7,1836.6,3.2159606]
[1743449599816,3.18539,1836.7,1836.6,6.8369606]
[1743449603420,3.18539,1836.7,1836.6,7.9260106]
[1743449603617,3.18539,1836.7,1836.6,4.7182106]
[1743449605120,3.18539,1836.7,1836.6,7.9260106]
[1743449605428,0.0081606,1836.9,1836.6,6.8369606]
[1743449605626,0.0081606,1836.9,1836.8,4.29673]
[1743449606227,0.0081606,1836.9,1836.8,6.47043]
[1743449606423,2.5516306,1836.9,1836.8,6.47043]
[1743449607227,2.5516306,1836.9,1836.8,5.3815]
[1743449607529,2.5516306,1836.9,1836.8,6.47043]
[1743449607720,2.5516306,1836.9,1836.8,3.2078]
[1743449608229,2.5516306,1836.9,1836.8,4.29673]
[1743449608728,2.5516306,1836.9,1836.8,5.66143]
[1743449609525,1.4627606,1836.9,1836.8,5.66143]
[1743449609731,2.5516306,1836.9,1836.8,5.66143]
[1743449610118,1.08899,1836.7,1836.6,1.0971806]
[1743449610321,1.08899,1836.7,1836.6,4.7182106]
[1743449610523,1.08899,1836.7,1836.6,3.6291606]
[1743449610724,2.58789,1836.7,1836.6,4.9938606]
[1743449611230,2.58789,1836.7,1836.6,6.0829106]
[1743449611424,1.4989,1836.7,1836.6,6.0829106]
[1743449611735,2.5788806,1836.9,1836.8,1.08893]
[1743449611933,1.08893,1836.8,1836.7,5.71764]
[1743449612133,1.4818,1836.8,1836.7,5.71764]
[1743449613027,0.0081606,1836.9,1836.8,1.08893]
[1743449613232,0.0081606,1836.9,1836.8,3.23893]
[1743449613432,1.4899606,1836.9,1836.8,3.23893]
[1743449613830,2.5788306,1836.9,1836.8,3.23893]
[1743449614136,1.4899606,1836.9,1836.8,3.23893]
[1743449615534,1.08868,1837.3,1837.2,1.0887]
[1743449615729,2.56838,1837.3,1837.2,62.8125]
[1743449616236,2.56838,1837.3,1837.2,64.2317]
[1743449617030,2.56838,1837.3,1837.2,63.143]
[1743449617224,2.56838,1837.3,1837.2,64.2317]
[1743449617832,1.4797,1837.3,1837.2,64.2317]
[1743449619338,2.56834,1837.3,1837.2,64.2317]
[1743449620238,1.4797,1837.3,1837.2,64.2317]
[1743449621227,2.7209,1837.8,1837.2,63.143]
[1743449621536,1.08844,1837.7,1837.6,1.08844]
[1743449621737,1.08844,1837.7,1837.6,3.62]
[1743449622240,3.5884,1837.7,1837.6,3.62]
[1743449622832,1.0884,1837.7,1837.6,3.62]
[1743449624641,3.2502,1837.7,1837.6,3.62]
[1743449625140,0.0081606,1837.8,1837.7,1.0884]
[1743449625341,1.0965006,1837.8,1837.7,1.3629]
[1743449625550,2.5184006,1837.8,1837.7,1.3629]
[1743449625839,3.2583006,1837.8,1837.7,1.3629]
[1743449626541,3.2583006,1837.8,1837.7,2.4513]
[1743449626742,3.2583006,1837.8,1837.7,1.3629]
[1743449627540,0.0081606,1837.8,1837.7,2.4513]
[1743449627845,1.08831,1837.9,1837.8,1.0883]
[1743449628035,0.7218,1838.4,1837.8,3.2078]
[1743449628241,1.08825,1838.0,1837.9,7.64556]
[1743449628442,1.08825,1838.0,1837.9,6.5573]
[1743449629342,1.08825,1838.0,1837.9,7.64558]
[1743449629552,1.08825,1838.0,1837.9,6.5573]
[1743449630647,1.08825,1838.0,1837.9,7.64558]
[1743449631845,1.08825,1838.0,1837.9,6.5573]
[1743449632047,1.08825,1838.0,1837.9,7.64558]
[1743449632241,1.08825,1838.0,1837.9,6.5573]
[1743449632747,1.08825,1838.0,1837.9,7.64558]
[1743449634346,0.7454606,1838.1,1837.9,7.64554]
[1743449634643,1.8336206,1838.1,1838.0,1.4454]
[1743449635044,3.3152206,1838.1,1838.0,1.4454]
[1743449637242,0.0081606,1838.1,1838.0,1.4454]
[1743449637439,1.0963206,1838.1,1838.0,5.74142]
[1743449638344,1.08802,1838.4,1838.3,1.08799]
[1743449638547,1.08802,1838.4,1838.3,62.79379]
[1743449638844,1.08802,1838.4,1838.3,62.79384]
[1743449639047,1.08802,1838.4,1838.3,61.7058]
[1743449639441,1.08802,1838.4,1838.3,64.20714]
[1743449639641,1.08802,1838.4,1838.3,63.1191]
[1743449640237,2.55752,1838.4,1838.3,63.1171]
[1743449641451,2.55752,1838.4,1838.3,59.4871]
[1743449641640,2.55752,1838.4,1838.3,63.1141]
[1743449641842,1.08802,1838.4,1838.3,64.20214]
[1743449642350,1.08802,1838.4,1838.3,63.1141]
[1743449648250,1.08802,1838.4,1838.3,64.20214]
[1743449648450,1.08802,1838.4,1838.3,63.1141]
[1743449650261,4.29582,1838.4,1838.3,58.484]
[1743449650452,5.68912,1838.4,1838.3,59.9834]
[1743449651152,2.48132,1838.4,1838.3,59.9834]
[1743449651957,1.08802,1838.4,1838.3,60.6758]
[1743449654159,1.08798,1838.4,1838.3,64.97162]
[1743449654346,1.08798,1838.4,1838.3,63.8836]
[1743449654754,1.08798,1838.4,1838.3,64.97164]
[1743449654953,1.08798,1838.4,1838.3,63.8836]
[1743449655561,1.08798,1838.4,1838.3,60.6758]
[1743449657558,1.08798,1838.4,1838.3,59.9834]
[1743449657755,1.83988,1838.4,1838.3,59.9834]
[1743449658854,5.04768,1838.4,1838.3,59.9834]
[1743449659456,4.29578,1838.4,1838.3,59.9834]
[1743449660459,5.66328,1838.4,1838.3,59.9834]
[1743449662860,2.45548,1838.4,1838.3,59.9834]
[1743449663052,1.08798,1838.4,1838.3,59.9834]
[1743449664159,3.26978,1838.4,1838.3,59.9834]
[1743449664364,1.08798,1838.4,1838.3,59.9834]
[1743449666768,2.57938,1838.4,1838.3,59.9834]
[1743449668768,1.08798,1838.4,1838.3,61.07144]
[1743449668964,1.0961106,1838.5,1838.4,1.08798]
[1743449669272,1.0960906,1838.5,1838.4,2.7554]
[1743449670771,1.08798,1838.4,1838.3,54.866]
[1743449671074,7.16758,1838.4,1838.3,59.8419]
[1743449672561,3.95978,1838.4,1838.3,59.8419]
[1743449674072,1.79498,1838.4,1838.3,59.8419]
[1743449674471,0.0081606,1838.5,1838.3,59.8419]
[1743449674771,1.08798,1838.4,1838.3,58.484]
[1743449677873,1.08798,1838.4,1838.3,59.57204]
[1743449678377,1.08798,1838.4,1838.3,58.484]
[1743449678978,1.08798,1838.4,1838.3,59.57204]
[1743449683281,1.08798,1838.4,1838.3,62.77984]
[1743449685784,1.08798,1838.4,1838.3,58.484]
[1743449687673,2.53148,1838.4,1838.3,58.484]
[1743449688577,2.53148,1838.4,1838.3,58.483]
[1743449688578,8.23928,1838.4,1838.3,58.483]
[1743449688777,8.92118,1838.4,1838.3,58.483]
[1743449690782,6.42118,1838.4,1838.3,58.483]
[1743449691983,6.42118,1838.4,1838.3,58.484]
[1743449694085,6.42118,1838.4,1838.3,59.8977]
[1743449698484,6.42118,1838.4,1838.3,58.4676788]
[1743449700197,6.42118,1838.4,1838.3,54.8496788]
[1743449700383,6.42118,1838.4,1838.3,57.3384988]
[1743449701695,6.42118,1838.4,1838.3,56.0556688]
[1743449702598,4.97768,1838.4,1838.3,56.0556688]
[1743449703095,6.44188,1838.4,1838.3,56.0556688]
[1743449704492,3.23408,1838.4,1838.3,56.0556688]
[1743449704694,3.23408,1838.4,1838.3,57.5113688]
[1743449706597,6.44188,1838.4,1838.3,57.5113688]
[1743449709106,6.44188,1838.4,1838.3,53.8933688]
[1743449709403,6.44188,1838.4,1838.3,56.0556688]
[1743449709604,6.44188,1838.4,1838.3,54.9592388]
[1743449709798,1.08816,1838.1,1838.0,1.3709]
[1743449709999,1.08816,1838.1,1838.0,4.9889]
[1743449710410,3.15136,1838.1,1838.0,4.9889]
[1743449710600,1.08816,1838.1,1838.0,4.9889]
[1743449711405,2.45186,1838.1,1838.0,4.9889]
[1743449711800,1.08816,1838.1,1838.0,4.9889]
[1743449713406,3.19746,1838.1,1838.0,4.9889]
[1743449717709,1.08816,1838.1,1838.0,4.9889]
[1743449718709,3.2078,1838.4,1838.0,4.9889]
[1743449718910,1.08802,1838.4,1838.1,6.0646]
[1743449719208,0.0081606,1838.5,1838.2,1.4354]
[1743449719410,1.0961306,1838.5,1838.3,4.70603]
[1743449719615,1.08798,1838.4,1838.3,3.618]
[1743449723911,1.0881,1838.2,1838.1,3.9458]
[1743449724113,1.0881,1838.2,1838.1,4.355]
[1743449724909,4.2959,1838.2,1838.1,4.355]
[1743449725512,1.08834,1837.8,1837.7,54.859]
[1743449725710,1.08834,1837.8,1837.7,58.476]
[1743449726317,4.29614,1837.8,1837.7,54.859]
[1743449726511,4.29614,1837.8,1837.7,58.476]
[1743449726912,4.29614,1837.8,1837.7,54.859]
[1743449727113,1.08846,1837.6,1837.5,0.0081606]
[1743449727309,4.29626,1837.6,1837.5,0.0081606]
[1743449727516,1.0887,1837.2,1837.1,54.861]
[1743449727715,1.0887,1837.2,1837.1,58.478]
[1743449729111,0.0081606,1837.3,1837.1,58.478]
[1743449729316,0.0081606,1837.3,1837.1,61.6858]
[1743449729517,1.0887,1837.2,1837.1,61.6858]
[1743449729914,1.0887,1837.2,1837.1,58.478]
[1743449732419,1.0887,1837.2,1837.1,58.479]
[1743449732624,1.0887,1837.2,1837.1,54.861]
[1743449732820,4.2965,1837.2,1837.1,58.479]
[1743449733123,4.2965,1837.2,1837.1,54.861]
[1743449733326,4.2965,1837.2,1837.1,58.479]
[1743449739028,4.2965,1837.2,1837.1,59.8706]
[1743449742130,4.2965,1837.2,1837.1,1.3916]
[1743449742428,1.08875,1837.1,1837.0,6e-07]
[1743449742633,1.08875,1837.1,1836.5,54.886]
[1743449742634,1.08905,1836.6,1836.5,54.886]
[1743449742826,1.08905,1836.6,1836.5,58.505]
[1743449743835,2.47435,1836.6,1836.5,58.505]
[1743449744228,1.08911,1836.5,1836.4,0.0081606]
[1743449744434,5.68221,1836.5,1836.4,0.0081606]
[1743449745328,5.68221,1836.5,1836.4,1.4678606]
[1743449746437,2.47441,1836.5,1836.4,1.4678606]
[1743449746735,1.08911,1836.5,1836.4,1.4678606]
[1743449748837,2.72236,1836.8,1836.4,2.5570006]
[1743449749136,1.4164,1836.9,1836.5,1.4478]
[1743449749330,1.08895,1836.8,1836.6,5.42744]
[1743449749533,1.08893,1836.8,1836.7,2.1887]
[1743449750240,1.08892,1836.9,1836.7,6.48549]
[1743449750434,1.08887,1836.9,1836.8,1.4478]
[1743449751238,1.08887,1836.9,1836.8,2.53673]
[1743449751438,1.08887,1836.9,1836.8,1.4478]
[1743449754044,1.08887,1836.9,1836.8,2.53673]
[1743449754232,1.08887,1836.9,1836.8,1.4478]
[1743449754436,1.08887,1836.9,1836.8,2.53673]
[1743449755347,1.08887,1836.9,1836.8,1.4478]
[1743449755739,1.08887,1836.9,1836.8,5.0678]
[1743449756939,1.08887,1836.9,1836.8,6.15673]
[1743449757150,1.08887,1836.9,1836.8,5.0678]
[1743449758741,1.08887,1836.9,1836.8,1.4478]
[1743449758949,1.08887,1836.9,1836.8,5.0678]
[1743449759241,1.08911,1836.5,1836.4,3.2159606]
[1743449759545,1.08911,1836.5,1836.4,6.8359606]
[1743449759939,1.08911,1836.5,1836.4,8.2590606]
[1743449760347,1.08909,1836.6,1836.5,1.08909]
[1743449760654,1.08902,1836.7,1836.6,1.08902]
[1743449760847,1.08898,1836.8,1836.7,1.08898]
[1743449761044,2.72189,1837.1,1836.7,2.1993]
[1743449761354,1.08893,1836.8,1836.7,3.28825]
[1743449761645,1.08893,1836.8,1836.7,2.1993]
[1743449763252,1.08893,1836.8,1836.7,1.456]
[1743449763847,2.56953,1836.8,1836.7,1.456]
[1743449765549,5.77733,1836.8,1836.7,3.624]